[Event "AUT-ch Open 2020"]
[Site "Graz"]
[Date "2020.02.18"]
[Round "5.14"]
[White "Rieger, Robert"]
[Black "Bodrogi, Bendeguz"]
[Result "1/2-1/2"]
[ECO "B32"]
[WhiteElo "2320"]
[BlackElo "2032"]
[Annotator "ChessBase"]
[PlyCount "85"]
[EventDate "2020.02.14"]
[EventType "swiss"]
[EventCountry "AUT"]
[SourceTitle "playchess.com"]
[Source "ChessBase"]
[SourceQuality "1"]
[TimeControl "40/5400+30:1800+30"]

1. e4 {[%emt 0:00:22]} c5 {[%emt 0:00:00]} 2. Nf3 {[%emt 0:00:03]} Nc6 {[%emt 0:00:04]} 3. d4 {[%emt 0:00:04]} cxd4 {[%emt 0:00:06]} 4. Nxd4 {[%emt 0:00:02]} e5 {[%emt 0:00:12]} 5. Nb5 {[%emt 0:00:44]} d6 {[%emt 0:01:18]} 6. c4 {[%emt 0:00:16]} Be7 {[%emt 0:00:16]} 7. b3 {[%emt 0:00:06]} Nf6 {[%emt 0:03:05]} 8. Bd3 {[%emt 0:12:53]} O-O {[%emt 0:01:22]} 9. O-O {[%emt 0:04:28]} Nd7 {[%emt 0:04:27]} 10. N1c3 {[%emt 0:09:29]} a6 {[%emt 0:00:30]} 11. Na3 {[%emt 0:00:04]} Bg5 {[%emt 0:05:12]} 12. Bb2 {[%emt 0:00:44]} Nc5 {[%emt 0:02:34]} 13. Be2 {[%emt 0:02:14]} Be6 {[%emt 0:03:42]} 14. Nc2 {[%emt 0:00:37]} Qb6 {[%emt 0:13:42]} 15. Rb1 {[%emt 0:08:01]} f5 {[%emt 0:14:50]} 16. exf5 {[%emt 0:01:53]} Bxf5 {[%emt 0:01:03]} 17. Nd5 {[%emt 0:01:10]} Qd8 {[%emt 0:01:55]} 18. b4 {[%emt 0:07:24]} Bxc2 {[%emt 0:12:01]} 19. Qxc2 {[%emt 0:00:07]} Ne6 {[%emt 0:00:14]} 20. Bd3 {[%emt 0:05:19]} g6 {[%emt 0:01:22]} 21. Be4 {[%emt 0:03:36]} Ncd4 {[%emt 0:03:05]} 22. Qd3 {[%emt 0:05:54]} Rc8 {[%emt 0:03:26]} 23. Bxd4 {[%emt 0:01:16]} Nxd4 {[%emt 0:00:22]} 24. f4 {[%emt 0:00:14]} Bh6 {[%emt 0:05:10]} 25. fxe5 {[%emt 0:06:32]} dxe5 {[%emt 0:01:23]} 26. Rxf8+ {[%emt 0:02:50]} Bxf8 {[%emt 0:00:09]} 27. Rf1 {[%emt 0:00:12]} Bg7 {[%emt 0:00:21]} 28. c5 {[%emt 0:04:19]} Nc6 {[%emt 0:07:33]} 29. Qh3 {[%emt 0:01:51]} Rb8 {[%emt 0:01:14]} 30. a3 {[%emt 0:02:01]} Qc8 {[%emt 0:04:01]} 31. Qf3 {[%emt 0:04:05]} Qd7 {[%emt 0:04:03]} 32. Kh1 {[%emt 0:03:04]} Rd8 {[%emt 0:05:20]} 33. h3 {[%emt 0:02:25]} Kh8 {[%emt 0:00:11]} 34. Nb6 {[%emt 0:04:19]} Qe7 {[%emt 0:01:17]} 35. Qe2 {[%emt 0:04:52]} Nd4 {[%emt 0:01:17]} 36. Qe1 {[%emt 0:01:04]} a5 {[%emt 0:00:34]} 37. Nc4 {[%emt 0:00:42]} axb4 {[%emt 0:00:14]} 38. axb4 {[%emt 0:00:03]} Bf6 {[%emt 0:00:46]} 39. Qf2 {[%emt 0:02:34]} Kg7 {[%emt 0:00:16]} 40. Ra1 {[%emt 0:01:12]} Bh4 {[%emt 0:00:44]} 41. Qb2 {[%emt 0:07:19]} Rf8 {[%emt 0:01:36]} 42. Qc3 {[%emt 0:12:29]} Ne2 {[%emt 0:06:23]} 43. Qe3 {[%emt 0:12:37]} 1/2-1/2

[Event "AUT-ch Open 2020"]
[Site "Graz"]
[Date "2020.02.18"]
[Round "5.14"]
[White "Papakonstantinou, Dimitrios"]
[Black "Halvax, Georg"]
[Result "1/2-1/2"]
[ECO "B33"]
[WhiteElo "2275"]
[BlackElo "2428"]
[Annotator "RC"]
[PlyCount "82"]
[EventDate "2020.02.14"]
[EventType "swiss"]
[EventCountry "AUT"]
[SourceTitle "playchess.com"]
[Source "ChessBase"]
[SourceQuality "1"]
[TimeControl "40/5400+30:1800+30"]

1. e4 {[%emt 0:01:29]} c5 {[%emt 0:00:00]} 2. Nf3 {[%emt 0:00:16]} Nc6 {[%emt 0:00:24]} 3. d4 {[%emt 0:00:11]} cxd4 {[%emt 0:00:08]} 4. Nxd4 {[%emt 0:00:04]} Nf6 {[%emt 0:00:14]} 5. Nc3 {[%emt 0:00:21]} e5 {[%emt 0:00:23]} 6. Ndb5 {[%emt 0:00:13]} d6 {[%emt 0:00:10]} 7. Bg5 {[%emt 0:00:09]} a6 {[%emt 0:00:08]} 8. Na3 {[%emt 0:00:12]} b5 {[%emt 0:00:14]} 9. Bxf6 {[%emt 0:01:16]} gxf6 {[%emt 0:00:11]} 10. Nd5 {[%emt 0:00:04]} Bg7 {[%emt 0:00:19]} 11. Bd3 {[%emt 0:01:09]} Ne7 {[%emt 0:00:45]} 12. Nxe7 {[%emt 0:00:30]} Qxe7 {[%emt 0:00:08]} 13. c4 {[%emt 0:00:44]} f5 {[%emt 0:00:13]} 14. O-O {[%emt 0:01:01]} O-O {[%emt 0:00:10]} 15. Qh5 {[%emt 0:01:29]} d5 {[%emt 0:00:08]} 16. cxd5 {[%emt 0:06:27]} Qd8 {[%emt 0:00:19]} 17. exf5 {[%emt 0:24:21]} Qxd5 {[%emt 0:01:09]} 18. f6 {[%emt 0:00:44]} Qxd3 {[%emt 0:00:08]} 19. fxg7 {[%emt 0:00:06]} Re8 {[%emt 0:00:06]} 20. Rfe1 {[%emt 0:01:24]} Qg6 {[%emt 0:00:24]} 21. Rxe5 {[%emt 0:08:09]} Qxh5 {[%emt 0:01:27]} 22. Rxh5 {[%emt 0:00:02]} Re2 {[%emt 0:00:08]} 23. b3 {[%emt 0:00:21]} Be6 {[%emt 0:11:39]} 24. Kf1 {[%emt 0:08:36]} Rb2 {[%emt 0:01:48]} 25. Re5 {[%emt 0:08:02]} Rc8 {[%emt 0:14:41]} 26. Re2 {[%emt 0:03:51]} Rxe2 {[%emt 0:00:27]} 27. Kxe2 {[%emt 0:00:02]} b4 {[%emt 0:00:08]} 28. Nc4 {[%emt 0:00:25]} Bxc4+ {[%emt 0:00:07]} 29. bxc4 {[%emt 0:00:03]} Rxc4 {[%emt 0:00:09]} 30. Kd2 {[%emt 0:02:14]} a5 {[%emt 0:08:21]} 31. Rb1 {[%emt 0:05:23]} Kxg7 {[%emt 0:03:08]} 32. Rb3 {[%emt 0:00:19]} h5 {[%emt 0:03:57]} 33. Rf3 {[%emt 0:02:21]} Kg6 {[%emt 0:01:11]} 34. a3 {[%emt 0:05:56]} bxa3 {[%emt 0:01:00]} 35. Rxa3 {[%emt 0:00:02]} a4 {[%emt 0:00:30]} 36. Rd3 {[%emt 0:02:31]} f6 {[%emt 0:02:12]} 37. Rd7 {[%emt 0:03:31]} Rb4 {[%emt 0:03:53]} 38. Ra7 {[%emt 0:00:30]} Rb2+ {[%emt 0:03:03]} 39. Ke3 {[%emt 0:00:58]} Rb3+ {[%emt 0:00:09]} 40. Kf4 {[%emt 0:01:29]} a3 {[%emt 0:00:58]} 41. h4 {[%emt 0:33:11]} Rb4+ {[%emt 0:30:20] Ke4} 1/2-1/2

[Event "AUT-ch Open 2020"]
[Site "Graz"]
[Date "2020.02.18"]
[Round "5.16"]
[White "Schwabeneder, Florian"]
[Black "Stukan, Martin"]
[Result "1-0"]
[ECO "A05"]
[WhiteElo "2412"]
[BlackElo "2292"]
[Annotator "ChessBase"]
[PlyCount "91"]
[EventDate "2020.02.14"]
[EventType "swiss"]
[EventCountry "AUT"]
[SourceTitle "playchess.com"]
[Source "ChessBase"]
[SourceQuality "1"]
[TimeControl "40/5400+30:1800+30"]

1. Nf3 {[%emt 0:00:00]} Nf6 {[%emt 0:00:00]} 2. b3 {[%emt 0:01:22]} g6 {[%emt 0:00:13]} 3. Bb2 {[%emt 0:00:37]} Bg7 {[%emt 0:00:02]} 4. g3 {[%emt 0:00:57]} c5 {[%emt 0:00:51]} 5. Bg2 {[%emt 0:01:56]} d6 {[%emt 0:03:32]} 6. c4 {[%emt 0:01:28]} e5 {[%emt 0:00:37]} 7. d3 {[%emt 0:05:20]} O-O {[%emt 0:00:50]} 8. O-O {[%emt 0:00:08]} Nc6 {[%emt 0:00:02]} 9. Nc3 {[%emt 0:00:21]} h6 {[%emt 0:03:01]} 10. Nd2 {[%emt 0:01:10]} Be6 {[%emt 0:00:13]} 11. a3 {[%emt 0:20:56]} Qd7 {[%emt 0:23:24]} 12. Nd5 {[%emt 0:03:39]} Bxd5 {[%emt 0:09:44]} 13. cxd5 {[%emt 0:00:17]} Ne7 {[%emt 0:00:02]} 14. e4 {[%emt 0:00:34]} h5 {[%emt 0:00:31]} 15. a4 {[%emt 0:13:48]} Ng4 {[%emt 0:12:47]} 16. h3 {[%emt 0:09:06]} Nh6 {[%emt 0:02:48]} 17. f4 {[%emt 0:03:02]} exf4 18. Bxg7 {[%emt 0:01:00]} Kxg7 {[%emt 0:05:42]} 19. gxf4 {[%emt 0:00:16]} f6 {[%emt 0:00:34]} 20. Nc4 {[%emt 0:04:52]} Nf7 {[%emt 0:00:11]} 21. Qf3 {[%emt 0:02:47]} Rab8 {[%emt 0:18:21]} 22. h4 {[%emt 0:10:04]} Nh6 {[%emt 0:07:41]} 23. Bh3 {[%emt 0:11:21]} f5 {[%emt 0:00:38]} 24. e5 {[%emt 0:03:24]} dxe5 {[%emt 0:02:05]} 25. d6 {[%emt 0:00:01]} Nc6 {[%emt 0:01:46]} 26. fxe5 {[%emt 0:00:03]} Qe6 {[%emt 0:02:13]} 27. Rae1 {[%emt 0:01:36]} Nd4 {[%emt 0:00:33]} 28. Qf4 {[%emt 0:02:05]} Ng4 {[%emt 0:01:14]} 29. b4 {[%emt 0:01:06]} Nc2 {[%emt 0:01:09]} 30. bxc5 {[%emt 0:00:07]} Nxe1 {[%emt 0:00:44]} 31. Rxe1 {[%emt 0:00:02]} Rbc8 {[%emt 0:00:16]} 32. Qd4 {[%emt 0:02:00]} f4 {[%emt 0:00:31]} 33. Re4 {[%emt 0:00:19]} f3 {[%emt 0:02:26]} 34. Rxg4 {[%emt 0:00:13]} f2+ {[%emt 0:01:40]} 35. Kf1 {[%emt 0:00:07]} hxg4 {[%emt 0:00:30]} 36. Bxg4 {[%emt 0:00:02]} Rf5 {[%emt 0:00:06]} 37. Ne3 {[%emt 0:01:27]} Rcf8 {[%emt 0:00:36]} 38. Bxf5 {[%emt 0:00:50]} gxf5 {[%emt 0:00:05]} 39. Qf4 {[%emt 0:00:23]} Kf7 {[%emt 0:00:41]} 40. d4 {[%emt 0:00:32]} Qa2 {[%emt 0:01:01]} 41. d5 {[%emt 0:07:06]} Qd2 {[%emt 0:06:51]} 42. e6+ {[%emt 0:06:14]} Kg6 {[%emt 0:00:04]} 43. Qxf2 {[%emt 0:01:14]} Qd3+ {[%emt 0:14:03]} 44. Qe2 {[%emt 0:03:03]} Qb1+ {[%emt 0:00:03]} 45. Kf2 {[%emt 0:00:21]} Qe4 {[%emt 0:02:45]} 46. Qc4 {[%emt 0:01:10]} 1-0

[Event "AUT-ch Open 2020"]
[Site "Graz"]
[Date "2020.02.18"]
[Round "5.19"]
[White "Mayrhuber, Nikola"]
[Black "Caglar, Sila"]
[Result "0-1"]
[ECO "A62"]
[WhiteElo "2017"]
[BlackElo "2268"]
[Annotator "ChessBase"]
[PlyCount "96"]
[EventDate "2020.02.14"]
[EventType "swiss"]
[EventCountry "AUT"]
[SourceTitle "playchess.com"]
[Source "ChessBase"]
[SourceQuality "1"]
[TimeControl "40/5400+30:1800+30"]

1. d4 {[%emt 0:00:00]} Nf6 {[%emt 0:00:00]} 2. c4 {[%emt 0:00:00]} c5 {[%emt 0:00:08]} 3. d5 {[%emt 0:00:00]} e6 {[%emt 0:00:10]} 4. g3 {[%emt 0:01:53]} exd5 {[%emt 0:00:19]} 5. cxd5 {[%emt 0:00:08]} d6 {[%emt 0:00:22]} 6. Nc3 {[%emt 0:00:48]} g6 {[%emt 0:00:43]} 7. Bg2 {[%emt 0:00:17]} Bg7 {[%emt 0:00:07]} 8. Nf3 {[%emt 0:00:08]} O-O {[%emt 0:00:09]} 9. O-O {[%emt 0:00:06]} Re8 {[%emt 0:00:11]} 10. Bf4 {[%emt 0:00:21]} Bf5 {[%emt 0:00:35]} 11. Nh4 {[%emt 0:00:56]} Bc8 {[%emt 0:05:27]} 12. Nf3 {[%emt 0:00:34]} Bf5 {[%emt 0:00:51]} 13. Nh4 {[%emt 0:00:11]} Bg4 {[%emt 0:01:10]} 14. Qd2 {[%emt 0:06:12]} b5 {[%emt 0:11:05]} 15. Nxb5 {[%emt 0:03:02]} Rxe2 {[%emt 0:02:17]} 16. Qc1 {[%emt 0:00:28]} Ne8 {[%emt 0:08:13]} 17. Nc3 {[%emt 0:10:20]} Re7 {[%emt 0:00:41]} 18. Bg5 {[%emt 0:07:25]} f6 {[%emt 0:02:32]} 19. Bh6 {[%emt 0:04:51]} Bxh6 {[%emt 0:30:39]} 20. Qxh6 {[%emt 0:00:08]} g5 {[%emt 0:00:11]} 21. Bf3 {[%emt 0:08:26]} Bc8 {[%emt 0:16:52]} 22. Ng2 {[%emt 0:01:06]} Nd7 {[%emt 0:00:27]} 23. Be2 {[%emt 0:17:38]} Ne5 {[%emt 0:13:27]} 24. f4 {[%emt 0:04:41]} Nf7 {[%emt 0:00:23]} 25. Qh5 {[%emt 0:00:15]} Ng7 {[%emt 0:00:36]} 26. Qf3 {[%emt 0:00:14]} g4 {[%emt 0:00:08]} 27. Qf2 {[%emt 0:01:40]} f5 {[%emt 0:00:26]} 28. Bd3 {[%emt 0:03:36]} Bd7 {[%emt 0:01:35]} 29. Rfe1 {[%emt 0:01:35]} Rb8 {[%emt 0:00:40]} 30. Ne3 {[%emt 0:02:54]} h5 {[%emt 0:02:00]} 31. Qc2 {[%emt 0:03:01]} Nh6 {[%emt 0:00:10]} 32. Nc4 {[%emt 0:01:18]} Rxe1+ {[%emt 0:01:08]} 33. Rxe1 {[%emt 0:00:05]} Qf6 {[%emt 0:00:08]} 34. Ne2 {[%emt 0:04:50]} Re8 {[%emt 0:00:53]} 35. Kf2 {[%emt 0:02:24]} Nf7 {[%emt 0:00:25]} 36. Qc3 {[%emt 0:00:44]} Qd8 {[%emt 0:01:34]} 37. Qa3 {[%emt 0:03:51]} Qa8 {[%emt 0:00:25]} 38. Nc3 {[%emt 0:01:47]} Qb7 {[%emt 0:01:10]} 39. Qa5 {[%emt 0:07:15]} Kf8 {[%emt 0:00:37]} 40. Bc2 {[%emt 0:02:32]} Rxe1 {[%emt 0:00:26]} 41. Kxe1 {[%emt 0:30:07]} h4 {[%emt 0:10:40]} 42. a3 {[%emt 0:00:00]} Nh5 {[%emt 0:00:40]} 43. Kf2 {[%emt 0:00:00]} Nf6 {[%emt 0:00:58]} 44. b4 {[%emt 0:00:00]} Nxd5 {[%emt 0:03:50]} 45. bxc5 {[%emt 0:00:00]} Nf6 {[%emt 0:03:07]} 46. Bd1 {[%emt 0:00:00]} Qh1 {[%emt 0:01:29]} 47. Nxd6 {[%emt 0:00:00]} Qxh2+ {[%emt 0:00:20]} 48. Kf1 {[%emt 0:00:00]} hxg3 {[%emt 0:00:35]} 0-1

[Event "AUT-ch Open 2020"]
[Site "Graz"]
[Date "2020.02.18"]
[Round "5.21"]
[White "Lim, Zhuo Ren"]
[Black "Palac, Mladen"]
[Result "1/2-1/2"]
[ECO "E15"]
[WhiteElo "2296"]
[BlackElo "2536"]
[Annotator "RC"]
[PlyCount "87"]
[EventDate "2020.02.14"]
[EventType "swiss"]
[EventCountry "AUT"]
[SourceTitle "playchess.com"]
[Source "ChessBase"]
[SourceQuality "1"]
[TimeControl "40/5400+30:1800+30"]

1. d4 {[%emt 0:00:00]} Nf6 {[%emt 0:17:03]} 2. c4 {[%emt 0:00:00]} e6 {[%emt 0:00:03]} 3. Nf3 {[%emt 0:00:07]} b6 {[%emt 0:00:39]} 4. g3 {[%emt 0:00:18]} Ba6 {[%emt 0:00:05]} 5. b3 {[%emt 0:00:20]} Bb4+ {[%emt 0:00:06]} 6. Bd2 {[%emt 0:00:20]} Be7 {[%emt 0:00:02]} 7. Bg2 {[%emt 0:00:11]} d5 {[%emt 0:00:01]} 8. cxd5 {[%emt 0:00:31]} exd5 {[%emt 0:00:01]} 9. O-O {[%emt 0:00:31]} O-O {[%emt 0:00:02]} 10. Nc3 {[%emt 0:00:12]} Re8 {[%emt 0:00:04]} 11. Rc1 {[%emt 0:02:58]} Nbd7 {[%emt 0:02:09]} 12. Nh4 {[%emt 0:00:44]} c6 {[%emt 0:12:13]} 13. Re1 {[%emt 0:02:41]} Bb7 {[%emt 0:10:05]} 14. Nf5 {[%emt 0:01:09]} Bb4 {[%emt 0:06:34]} 15. Na4 {[%emt 0:11:25]} Bf8 {[%emt 0:01:01]} 16. Bf4 {[%emt 0:00:49]} Nh5 {[%emt 0:06:38]} 17. Bd6 {[%emt 0:02:54]} g6 {[%emt 0:00:40]} 18. Bxf8 {[%emt 0:00:20]} Nxf8 {[%emt 0:00:02]} 19. Nh6+ {[%emt 0:02:07]} Kg7 {[%emt 0:00:07]} 20. Ng4 {[%emt 0:00:20]} Nd7 {[%emt 0:01:59]} 21. Qd2 {[%emt 0:02:13]} f5 {[%emt 0:00:20]} 22. Qh6+ {[%emt 0:01:18]} Kg8 {[%emt 0:00:36]} 23. Ne3 {[%emt 0:00:29]} Ng7 {[%emt 0:03:19]} 24. Nf1 {[%emt 0:09:01]} Nf6 {[%emt 0:04:49]} 25. f3 {[%emt 0:01:05]} Ne6 {[%emt 0:01:09]} 26. Qd2 {[%emt 0:02:10]} Qd6 {[%emt 0:00:07]} 27. e3 {[%emt 0:00:29]} Re7 {[%emt 0:06:49]} 28. Qc3 {[%emt 0:00:38]} Rc8 {[%emt 0:06:52]} 29. Red1 {[%emt 0:01:05]} Kg7 {[%emt 0:01:45]} 30. b4 {[%emt 0:01:13]} Rec7 {[%emt 0:02:39]} 31. Nd2 {[%emt 0:01:53]} Ba6 {[%emt 0:02:06]} 32. Nb3 {[%emt 0:00:51]} h5 {[%emt 0:02:55]} 33. Nb2 {[%emt 0:06:39]} h4 {[%emt 0:00:10]} 34. Qe1 {[%emt 0:00:47]} hxg3 {[%emt 0:00:53]} 35. hxg3 {[%emt 0:00:02]} Nh5 {[%emt 0:00:27]} 36. f4 {[%emt 0:00:18]} Nf6 {[%emt 0:00:06]} 37. Nd3 {[%emt 0:00:23]} Bxd3 {[%emt 0:01:25]} 38. Rxd3 {[%emt 0:00:04]} c5 {[%emt 0:05:37]} 39. dxc5 {[%emt 0:03:18]} bxc5 {[%emt 0:00:02]} 40. bxc5 {[%emt 0:00:07]} Nxc5 {[%emt 0:00:01]} 41. Nxc5 {[%emt 0:30:28]} Rxc5 {[%emt 0:30:03]} 42. Rcd1 {[%emt 0:02:18]} Rb8 {[%emt 0:02:40]} 43. Qd2 {[%emt 0:01:27]} Qe7 {[%emt 0:03:25]} 44. Bf3 {[%emt 0:04:14]} 1/2-1/2

[Event "AUT-ch Open 2020"]
[Site "Graz"]
[Date "2020.02.18"]
[Round "5.23"]
[White "Yankelevich, Lev"]
[Black "Zadruzny, Nicolaj"]
[Result "1/2-1/2"]
[ECO "D37"]
[WhiteElo "2473"]
[BlackElo "2473"]
[Annotator "RC"]
[PlyCount "60"]
[EventDate "2020.02.14"]
[EventType "swiss"]
[EventCountry "AUT"]
[SourceTitle "playchess.com"]
[Source "ChessBase"]
[SourceQuality "1"]
[TimeControl "40/5400+30:1800+30"]

1. d4 {[%emt 0:00:00]} Nf6 {[%emt 0:00:00]} 2. c4 {[%emt 0:00:00]} e6 {[%emt 0:00:00]} 3. Nf3 {[%emt 0:00:00]} d5 {[%emt 0:00:00]} 4. Nc3 {[%emt 0:00:00]} Be7 {[%emt 0:00:00]} 5. Bf4 {[%emt 0:00:09]} O-O {[%emt 0:00:22]} 6. e3 {[%emt 0:00:12]} Nbd7 {[%emt 0:00:11]} 7. Be2 {[%emt 0:00:29]} dxc4 {[%emt 0:01:13]} 8. O-O {[%emt 0:00:05]} c5 {[%emt 0:04:46]} 9. dxc5 {[%emt 0:05:51]} Nxc5 {[%emt 0:01:44]} 10. Bxc4 {[%emt 0:00:16]} a6 {[%emt 0:01:11]} 11. Ne5 {[%emt 0:07:29]} Ncd7 {[%emt 0:13:28]} 12. Qf3 {[%emt 0:08:40]} Nxe5 {[%emt 0:01:37]} 13. Bxe5 {[%emt 0:00:09]} Qa5 {[%emt 0:00:47]} 14. Bg3 {[%emt 0:00:43]} Qb4 {[%emt 0:05:13]} 15. Qe2 {[%emt 0:06:37]} Bd7 {[%emt 0:09:16]} 16. a3 {[%emt 0:17:59]} Qc5 {[%emt 0:04:06]} 17. Rac1 {[%emt 0:00:12]} Nh5 {[%emt 0:08:14]} 18. Ne4 {[%emt 0:02:44]} Nxg3 {[%emt 0:00:16]} 19. Nxc5 {[%emt 0:00:19]} Nxe2+ {[%emt 0:00:14]} 20. Bxe2 {[%emt 0:00:01]} Bxc5 {[%emt 0:07:16]} 21. Rxc5 {[%emt 0:01:16]} Rfc8 {[%emt 0:00:35]} 22. Rfc1 {[%emt 0:01:42]} Rxc5 {[%emt 0:00:10]} 23. Rxc5 {[%emt 0:00:04]} Rc8 {[%emt 0:00:08]} 24. Rxc8+ {[%emt 0:00:09]} Bxc8 {[%emt 0:00:04]} 25. e4 {[%emt 0:03:07]} e5 {[%emt 0:00:21]} 26. Bc4 {[%emt 0:00:09]} Kf8 {[%emt 0:00:43]} 27. f3 {[%emt 0:00:25]} Ke7 {[%emt 0:00:13]} 28. Bd5 {[%emt 0:00:12]} b6 {[%emt 0:00:44]} 29. Kf2 {[%emt 0:00:59]} Be6 {[%emt 0:00:50]} 30. Bxe6 {[%emt 0:00:40]} Kxe6 {[%emt 0:00:09]} 1/2-1/2

[Event "AUT-ch Open 2020"]
[Site "Graz"]
[Date "2020.02.18"]
[Round "5.25"]
[White "Blohberger, Felix"]
[Black "Danner, Georg"]
[Result "1-0"]
[ECO "A43"]
[WhiteElo "2448"]
[BlackElo "2295"]
[Annotator "RC"]
[PlyCount "57"]
[EventDate "2020.02.14"]
[EventType "swiss"]
[EventCountry "AUT"]
[SourceTitle "playchess.com"]
[Source "ChessBase"]
[SourceQuality "1"]
[TimeControl "40/5400+30:1800+30"]

1. d4 {[%emt 0:01:00]} c5 {[%emt 0:00:00]} 2. d5 {[%emt 0:00:15]} g6 {[%emt 0:00:00]} 3. e4 {[%emt 0:00:13]} Bg7 {[%emt 0:00:00]} 4. Nc3 {[%emt 0:01:17]} d6 {[%emt 0:00:03]} 5. Bb5+ {[%emt 0:04:29]} Bd7 {[%emt 0:00:06]} 6. a4 {[%emt 0:00:05]} Nf6 {[%emt 0:00:11]} 7. Nf3 {[%emt 0:00:09]} O-O {[%emt 0:00:08]} 8. O-O {[%emt 0:04:10]} Bg4 {[%emt 0:00:24]} 9. Be2 {[%emt 0:03:21]} Bxf3 {[%emt 0:00:45]} 10. Bxf3 {[%emt 0:00:06]} Na6 {[%emt 0:00:04]} 11. Bg5 {[%emt 0:03:43]} Nc7 {[%emt 0:00:38]} 12. Qd2 {[%emt 0:06:15]} a6 {[%emt 0:00:50]} 13. Rae1 {[%emt 0:05:09]} Nd7 {[%emt 0:05:59]} 14. Be2 {[%emt 0:04:42]} Rb8 {[%emt 0:00:37]} 15. f4 {[%emt 0:01:29]} f6 {[%emt 0:25:55]} 16. Bh4 {[%emt 0:01:01]} b5 {[%emt 0:00:07]} 17. b3 {[%emt 0:09:33]} bxa4 {[%emt 0:10:37]} 18. Nxa4 {[%emt 0:00:24]} Rb4 {[%emt 0:01:29]} 19. Bc4 {[%emt 0:03:09]} Nb6 {[%emt 0:14:25]} 20. Nxb6 {[%emt 0:02:56]} Rxb6 {[%emt 0:00:02]} 21. e5 {[%emt 0:18:09]} fxe5 {[%emt 0:04:37]} 22. fxe5 {[%emt 0:00:42]} Rxf1+ {[%emt 0:00:53]} 23. Kxf1 {[%emt 0:00:20]} Nb5 {[%emt 0:18:27]} 24. Kg1 {[%emt 0:05:41]} Bxe5 {[%emt 0:06:25]} 25. Rxe5 {[%emt 0:01:26]} dxe5 {[%emt 0:00:04]} 26. Bxe7 {[%emt 0:00:17]} Qd7 {[%emt 0:02:56]} 27. d6+ {[%emt 0:00:07]} Kg7 {[%emt 0:00:08]} 28. Qd5 {[%emt 0:04:23]} Rxd6 {[%emt 0:04:03]} 29. Qxe5+ {[%emt 0:00:41]} 1-0

[Event "AUT-ch Open 2020"]
[Site "Graz"]
[Date "2020.02.18"]
[Round "5.26"]
[White "Matt, Fabian"]
[Black "Valeanu, Eduard-Andrei"]
[Result "1/2-1/2"]
[ECO "A34"]
[WhiteElo "2290"]
[BlackElo "2427"]
[Annotator "RC"]
[PlyCount "151"]
[EventDate "2020.02.14"]
[EventType "swiss"]
[EventCountry "AUT"]
[SourceTitle "playchess.com"]
[Source "ChessBase"]
[SourceQuality "1"]
[TimeControl "40/5400+30:1800+30"]

1. Nf3 {[%emt 0:00:00]} c5 {[%emt 0:00:53]} 2. c4 {[%emt 0:00:21]} Nf6 {[%emt 0:00:35]} 3. Nc3 {[%emt 0:01:26]} d5 {[%emt 0:00:05]} 4. cxd5 {[%emt 0:00:31]} Nxd5 {[%emt 0:00:05]} 5. e3 {[%emt 0:07:03]} Nc6 {[%emt 0:01:44]} 6. Bb5 {[%emt 0:03:55]} Ndb4 {[%emt 0:00:49]} 7. O-O {[%emt 0:02:33]} a6 {[%emt 0:01:10]} 8. Be2 {[%emt 0:00:37]} Bf5 {[%emt 0:04:04]} 9. Ne1 {[%emt 0:08:28]} Nd3 {[%emt 0:05:02]} 10. Qb3 {[%emt 0:10:55]} b5 {[%emt 0:03:31]} 11. Bf3 {[%emt 0:05:28]} Rc8 {[%emt 0:01:14]} 12. a4 {[%emt 0:14:33]} c4 {[%emt 0:02:21]} 13. Qd1 {[%emt 0:00:28]} b4 {[%emt 0:00:16]} 14. Ne2 {[%emt 0:00:45]} e5 {[%emt 0:01:11]} 15. Ng3 {[%emt 0:00:46]} Be6 {[%emt 0:02:24]} 16. b3 {[%emt 0:02:41]} Nc5 {[%emt 0:18:05]} 17. bxc4 {[%emt 0:04:18]} Bxc4 {[%emt 0:00:14]} 18. d3 {[%emt 0:00:11]} Bb3 {[%emt 0:03:46]} 19. Qe2 {[%emt 0:00:29]} Nxa4 {[%emt 0:00:10]} 20. d4 {[%emt 0:00:30]} Nb6 {[%emt 0:04:40]} 21. Bb2 {[%emt 0:07:52]} Bc4 {[%emt 0:00:47]} 22. Nd3 {[%emt 0:00:17]} Be7 {[%emt 0:00:34]} 23. Rfd1 {[%emt 0:09:19]} exd4 {[%emt 0:01:20]} 24. exd4 {[%emt 0:00:12]} O-O {[%emt 0:00:38]} 25. d5 {[%emt 0:00:45]} Nxd5 {[%emt 0:00:52]} 26. Qe4 {[%emt 0:06:38]} Bb3 {[%emt 0:00:04]} 27. Nf4 {[%emt 0:01:42]} Bxd1 {[%emt 0:01:05]} 28. Rxd1 {[%emt 0:00:07]} Nc3 {[%emt 0:01:50]} 29. Bxc3 {[%emt 0:01:09]} bxc3 {[%emt 0:01:31]} 30. Rxd8 {[%emt 0:00:15]} Rfxd8 {[%emt 0:00:03]} 31. Nd5 {[%emt 0:04:06]} Rxd5 {[%emt 0:01:34]} 32. Qxd5 {[%emt 0:00:57]} c2 {[%emt 0:00:03]} 33. Ne2 {[%emt 0:02:31]} Rd8 {[%emt 0:00:31]} 34. Qxd8+ {[%emt 0:01:21]} Nxd8 {[%emt 0:01:08]} 35. Be4 {[%emt 0:00:01]} g6 {[%emt 0:01:35]} 36. f4 {[%emt 0:01:23]} Bc5+ {[%emt 0:01:11]} 37. Kf1 {[%emt 0:00:07]} Kg7 {[%emt 0:01:26]} 38. Bxc2 {[%emt 0:01:15]} a5 {[%emt 0:00:32]} 39. g4 {[%emt 0:00:35]} Nb7 {[%emt 0:02:00]} 40. Nc3 {[%emt 0:01:26]} Bd4 {[%emt 0:00:16]} 41. Ne4 {[%emt 0:30:31]} Nd8 {[%emt 0:32:26]} 42. Ke2 {[%emt 0:00:18]} Nc6 {[%emt 0:00:15]} 43. h3 {[%emt 0:01:15]} Nb4 {[%emt 0:00:20]} 44. Bb3 {[%emt 0:00:12]} f6 {[%emt 0:00:22]} 45. Nd6 {[%emt 0:01:01]} Bc3 {[%emt 0:01:26]} 46. Ne4 {[%emt 0:00:11]} Bb2 {[%emt 0:00:56]} 47. Nd6 {[%emt 0:00:27]} Nc6 {[%emt 0:02:26]} 48. Kd3 {[%emt 0:01:15]} g5 {[%emt 0:03:18]} 49. Nc4 {[%emt 0:00:00]} Ba1 {[%emt 0:00:00]} 50. Ba4 {[%emt 0:00:00]} Ne7 {[%emt 0:00:00]} 51. fxg5 {[%emt 0:00:00]} fxg5 {[%emt 0:00:00]} 52. Nxa5 {[%emt 0:00:00]} Nd5 {[%emt 0:00:00]} 53. Nc6 {[%emt 0:00:00]} Nf4+ {[%emt 0:00:00]} 54. Ke4 {[%emt 0:00:00]} Nxh3 {[%emt 0:00:00]} 55. Ne7 {[%emt 0:00:00]} Kf6 {[%emt 0:00:00]} 56. Ng8+ {[%emt 0:00:00]} Kf7 {[%emt 0:00:00]} 57. Bb3+ {[%emt 0:00:00]} Kg7 {[%emt 0:00:00]} 58. Kf5 {[%emt 0:00:00]} h6 {[%emt 0:00:00]} 59. Ne7 {[%emt 0:00:00]} Nf2 {[%emt 0:00:00]} 60. Bc2 {[%emt 0:00:32]} Bf6 {[%emt 0:00:00]} 61. Nd5 {[%emt 0:00:33]} Bd4 {[%emt 0:00:00]} 62. Nc7 {[%emt 0:00:34]} Kf7 {[%emt 0:00:00]} 63. Bb3+ {[%emt 0:01:25]} Ke7 {[%emt 0:00:00]} 64. Ne6 {[%emt 0:02:03]} Be3 {[%emt 0:00:00]} 65. Bd5 {[%emt 0:01:26]} Kd6 {[%emt 0:00:00]} 66. Bf3 {[%emt 0:00:30]} Nd3 {[%emt 0:00:00]} 67. Ke4 {[%emt 0:00:54]} Ne5 {[%emt 0:00:00]} 68. Ng7 {[%emt 0:00:26]} Bf4 {[%emt 0:00:00]} 69. Nf5+ {[%emt 0:00:04]} Ke6 {[%emt 0:00:00]} 70. Nxh6 {[%emt 0:00:12]} Nc4 {[%emt 0:00:00]} 71. Be2 {[%emt 0:00:49]} Nd6+ {[%emt 0:00:00]} 72. Kd4 {[%emt 0:00:17]} Be5+ {[%emt 0:00:00]} 73. Ke3 {[%emt 0:00:08]} Bf4+ {[%emt 0:00:00]} 74. Kd4 {[%emt 0:00:04]} Kf6 {[%emt 0:00:24]} 75. Nf5 {[%emt 0:00:23]} Nxf5+ {[%emt 0:00:22]} 76. gxf5 {[%emt 0:00:05] Ke5+ Ke4+} 1/2-1/2